[Event "FIDE Women GP Shimkent 2024"]
[Site "Shimkent"]
[Date "2024.11.02"]
[Round "4.1"]
[White "Goryachkina, Aleksandra"]
[Black "Tsolakidou, Stavroula"]
[Result "1-0"]
[ECO "B30"]
[WhiteElo "2533"]
[BlackElo "2439"]
[Annotator "TA"]
[PlyCount "87"]
[EventDate "2024.10.11"]
[EventType "tourn"]
[EventCountry "KAZ"]
[SourceTitle "playchess.com"]
[Source "ChessBase"]
[SourceQuality "1"]
[TimeControl "40/5400+30:1800+30"]

{[%evp 13,87,20,21,25,14,14,36,25,47,35,38,11,11,8,25,14,54,27,53,61,68,67,84,79,85,51,42,44,39,45,57,38,70,58,61,66,61,61,59,66,109,116,159,149,151,143,140,95,163,148,182,144,157,151,190,175,174,179,164,168,203,140,141,128,159,119,174,160,258,250,365,360,525,531,515,492]} 1. e4 {[%emt 0:00:11]} c5 {[%emt 0:00:11][%cal Bc7c5,Bc5d4][%mdl 32]} 2. Nf3 {[%emt 0:00:09]} Nc6 {[%emt 0:00:12]} 3. Bb5 {[%emt 0:00:26]} e6 {[%emt 0:00:17]} 4. O-O {[%emt 0:00:56]} Nge7 {[%emt 0:00:15]} 5. Re1 {[%emt 0:00:26]} Nd4 {[%emt 0:00:57]} 6. Nxd4 {[%emt 0:01:17]} cxd4 {[%emt 0:00:08]} 7. c3 {[%emt 0:00:52]} a6 {[%emt 0:00:16]} 8. Bf1 {[%emt 0:00:57]} Nc6 {[%emt 0:00:21]} 9. b4 {[%emt 0:00:33] Against Bc5} Bd6 {[%emt 0:00:36]} 10. Bb2 {[%emt 0:01:09] White is slightly better.} dxc3 {[%emt 0:00:38]} 11. dxc3 {[%emt 0:00:10]} Qc7 {[%emt 0:00:12]} 12. h3 {[%emt 0:00:25]} O-O {[%emt 0:00:20]} 13. Nd2 {[%emt 0:00:47]} b6 {[%emt 0:02:54][%cal Bb7b6,Bb6b5][%mdl 32]} 14. Nc4 {[%emt 0:01:55]} Bh2+ {[%emt 0:03:09]} 15. Kh1 {[%emt 0:00:06] g3 would now be deadly.} Bf4 {[%emt 0:00:06]} 16. Bc1 {[%emt 0:04:41]} Rb8 {[%emt 0:29:33]} 17. a4 {[%emt 0:07:34]} b5 {[%emt 0:07:46]} 18. Bxf4 {[%emt 0:08:30]} Qxf4 {[%emt 0:00:06]} 19. Qd2 {[%emt 0:05:36]} (19. axb5 {is more complex.} axb5 20. Nd6 Qxf2 21. Bxb5 Ne5 22. Rf1) 19... Qxd2 {[%emt 0:01:55]} 20. Nxd2 {[%emt 0:00:21]} d6 {[%emt 0:00:10]} 21. Red1 {[%emt 0:07:30]} Rd8 {[%emt 0:00:44]} 22. Nb1 {[%emt 0:08:09]} Kf8 {[%emt 0:04:14]} 23. axb5 {[%emt 0:04:56]} axb5 {[%emt 0:00:06]} 24. Na3 {[%emt 0:00:26]} Na7 {[%emt 0:01:53] [#]} 25. Nc4 $1 {[%emt 0:09:56]} bxc4 {[%emt 0:00:55]} 26. Rxa7 {[%emt 0:00:02]} Bb7 {[%emt 0:01:31]} 27. Rd4 {[%emt 0:00:54]} ({Reject} 27. Bxc4 $6 Bxe4 28. Bd3 Bc6 $11) 27... d5 {[%emt 0:19:16] [#]} 28. Bxc4 $1 {[%emt 0:02:13][%mdl 512]} Bc6 {[%emt 0:10:01]} 29. exd5 {[%emt 0:00:38]} exd5 {[%emt 0:00:57]} 30. Ba6 {[%emt 0:09:29]} Rd6 {[%emt 0:01:20]} (30... Ra8 $16 31. Rxa8 Rxa8) 31. Rc7 {[%emt 0:01:16]} Rf6 {[%emt 0:05:19]} 32. f3 {[%emt 0:01:32]} Rb6 {[%emt 0:00:43]} 33. Bd3 {[%emt 0:01:58] White is much more active.} g6 {[%emt 0:00:36]} 34. Kg1 {[%emt 0:01:21]} Rb7 {[%emt 0:00:47]} 35. Rc8+ {[%emt 0:07:52]} Ke7 {[%emt 0:00:20]} 36. Kf2 {[%emt 0:00:41]} h5 {[%emt 0:00:59]} 37. h4 {[%emt 0:03:46]} Kd7 {[%emt 0:01:01]} 38. Rh8 {[%emt 0:00:43][%cal Ob4b5]} Kd6 {[%emt 0:00:41]} 39. Kg3 {[%emt 0:02:54]} Ke5 {[%emt 0:02:07]} (39... Ke7 $16 40. Ba6 Ra7) 40. Rc8 {[%emt 0:01:10]} Kd6 {[%emt 0:03:07]} (40... Re6 $16 {was called for.} 41. Bf1 Ra7) 41. Be4 {[%emt 0:31:59][%cal Oc8c6] Rxc6+! is the strong threat.} ({Don't play} 41. Rf4 $6 Rxf4 42. Kxf4 Ra7 $16) 41... Rb5 {[%emt 0:06:32] [#]} (41... Rb6 $142 42. Bxd5 Bxd5 43. Rd8+ Ke7 44. R8xd5 (44. R4xd5 Rfc6 $18) 44... Rfc6 45. Re4+ Kf6 46. Rf4+ Ke7 47. Re5+ Kf8) 42. Rd8+ $1 $18 {[%emt 0:00:00]} Ke5 {[%emt 0:06:17] [#]} (42... Kc7 $142) 43. f4+ $1 {[%emt 0:00:00][%mdl 512]} Rxf4 {[%emt 0:07:34] [#]} 44. Bxd5 $1 {[%emt 0:00:00][%mdl 512] Weighted Error Value: White=0.10 (very precise) /Black=0.29 (precise) .  Mistake:       	---       	Black=5      Inaccurate:     	White=5     	Black=4      OK:         	White=14    	Black=12     Best:        	---       	Black=1      Strong:       	White=1     	---        Brilliant:      	White=2     	---} 1-0

[Event "FIDE Women GP Shimkent 2024"]
[Site "Shimkent"]
[Date "2024.11.02"]
[Round "4.2"]
[White "Paehtz, Elisabeth"]
[Black "Assaubayeva, Bibisara"]
[Result "1/2-1/2"]
[ECO "B22"]
[WhiteElo "2458"]
[BlackElo "2487"]
[Annotator "TA"]
[PlyCount "74"]
[EventDate "2024.10.11"]
[EventType "tourn"]
[EventCountry "KAZ"]
[SourceTitle "playchess.com"]
[Source "ChessBase"]
[SourceQuality "1"]
[TimeControl "40/5400+30:1800+30"]

{[%evp 20,74,0,0,1,0,0,-11,-6,-19,-5,-10,-6,-10,-1,-13,-5,-27,-25,-33,-29,-20,-29,-41,-12,-21,-16,-25,-21,-25,-22,-18,-15,-23,-29,-24,-33,-63,-38,-48,-49,-75,-85,-85,-77,-77,-84,-71,-79,-81,0,0,0,-91,0,0,0]} 1. e4 {[%emt 0:00:01]} c5 {[%emt 0:00:11]} 2. c3 {[%emt 0:00:03]} Nf6 {[%emt 0:00:07]} 3. e5 {[%emt 0:00:04]} Nd5 {[%emt 0:00:06]} 4. Nf3 {[%emt 0:00:14]} d6 {[%emt 0:00:26]} 5. d4 {[%emt 0:01:00]} cxd4 {[%emt 0:00:30]} 6. cxd4 {[%emt 0:00:07]} Nc6 {[%emt 0:00:26]} 7. Bc4 {[%emt 0:00:04]} Nb6 {[%emt 0:04:16]} 8. Bb5 {[%emt 0:00:09]} dxe5 {[%emt 0:00:06]} 9. Nxe5 {[%emt 0:00:07]} Bd7 {[%emt 0:00:03]} 10. Nxd7 {[%emt 0:00:12]} Qxd7 {[%emt 0:00:06]} 11. Nc3 {[%emt 0:00:21]} Rd8 {[%emt 0:00:06][%cal Og7g6]} 12. O-O {[%emt 0:04:16]} e6 {[%emt 0:00:08]} 13. Bg5 {[%emt 0:03:58]} Be7 {[%emt 0:02:00]} 14. Bxe7 {[%emt 0:00:05]} Qxe7 {[%emt 0:00:09]} 15. Qf3 {[%emt 0:00:31]} O-O {[%emt 0:03:24]} 16. Bxc6 {[%emt 0:00:21]} bxc6 {[%emt 0:00:07]} 17. Rfd1 {[%emt 0:02:01]} Qb4 {[%emt 0:09:43]} 18. Qxc6 {[%emt 0:23:00]} Qxb2 {[%emt 0:04:03] [#] And now ...Rc8 would win.} 19. Rab1 {[%emt 0:13:13]} Qa3 {[%emt 0:04:41]} 20. Qc5 {[%emt 0:00:24]} Qa6 {[%emt 0:00:56]} 21. Qb5 {[%emt 0:12:34]} Qxb5 {[%emt 0:03:40]} 22. Nxb5 {[%emt 0:00:20]} Nd5 {[%emt 0:00:48] Strongly threatening ...a6.} 23. Rb3 {[%emt 0:05:37]} a6 {[%emt 0:02:06]} 24. Nc3 {[%emt 0:00:50]} Nxc3 {[%emt 0:08:17]} 25. Rxc3 $11 {[%emt 0:00:04][%mdl 4096] Endgame. KRR-KRR} Rd5 {[%emt 0:00:07]} 26. Ra3 {[%emt 0:00:53]} Rc8 {[%emt 0:04:58][%cal Od5d4]} 27. g3 {[%emt 0:13:57]} a5 {[%emt 0:05:35]} 28. Rb1 {[%emt 0:00:30][%cal Oa3c3]} g6 {[%emt 0:02:33][%cal Oc8c2]} (28... Rxd4 29. Rxa5 h5 30. Rxh5 $11) 29. Rb2 {[%emt 0:10:09]} Kg7 {[%emt 0:04:52][%cal Oc8c4]} 30. Re2 {[%emt 0:01:57]} Rc4 {[%emt 0:18:42]} ({Much weaker is} 30... Rxd4 31. Rxa5 Kf8 32. Kg2 $11) 31. Re5 {[%emt 0:00:03]} a4 {[%emt 0:01:19]} ({Don't play} 31... Rcxd4 32. Rxa5 Rxe5 33. Rxe5 $11) ({But not} 31... Rdxd4 $6 32. Rexa5 h6 33. Ra7 $11) 32. Rxd5 {[%emt 0:01:03]} exd5 $17 {[%emt 0:00:24] KR-KR} 33. Rd3 {[%emt 0:00:01]} Kf6 {[%emt 0:03:36]} 34. Kg2 {[%emt 0:00:39]} Rc2 {[%emt 0:02:54]} 35. Ra3 {[%emt 0:00:17]} Rc4 {[%emt 0:00:04]} 36. Rd3 {[%emt 0:00:04] [#]} Rc2 {[%emt 0:00:11]} ({Better is} 36... Kf5 $1 $17 {Threatens to win with ...Ke4.} 37. Kf3 h5) 37. Ra3 $11 {[%emt 0:00:08]} Rc4 {[%emt 0:00:03] Weighted Error Value: White=0.06 (flawless) /Black=0.10 (very precise) .  Mistake:       	---       	Black=1      Inaccurate:     	White=2     	Black=1      OK:         	White=7     	Black=16     Best:        	White=4     	---} 1/2-1/2

[Event "FIDE Women GP Shimkent 2024"]
[Site "Shimkent"]
[Date "2024.11.02"]
[Round "4.3"]
[White "Koneru, Humpy"]
[Black "Salimova, Nurgyul"]
[Result "1-0"]
[ECO "D35"]
[WhiteElo "2530"]
[BlackElo "2405"]
[Annotator "TA"]
[PlyCount "127"]
[EventDate "2024.10.11"]
[EventType "tourn"]
[EventCountry "KAZ"]
[SourceTitle "playchess.com"]
[Source "ChessBase"]
[SourceQuality "1"]
[TimeControl "40/5400+30:1800+30"]

{[%evp 56,127,0,-16,11,0,0,0,0,0,43,59,66,30,37,3,45,60,50,46,46,62,174,139,177,69,123,61,74,60,68,35,35,30,20,28,23,28,154,179,216,172,179,169,417,232,504,472,417,437,1426,1426,1706,1655,1889,689,1889,1889,1870,1850,1826,1827,1805,1834,2320,1834,1757,1177,1140,588,29974,29971,29948,11272]} 1. c4 {[%emt 0:00:08]} e6 {[%emt 0:00:18]} 2. Nc3 {[%emt 0:00:18]} d5 {[%emt 0:00:22]} 3. d4 {[%emt 0:00:13]} Nf6 {[%emt 0:00:22]} 4. cxd5 {[%emt 0:00:38]} exd5 {[%emt 0:00:30]} 5. Bg5 {[%emt 0:00:21]} Be7 {[%emt 0:01:40]} 6. e3 {[%emt 0:00:20]} O-O {[%emt 0:02:02]} 7. Bd3 {[%emt 0:01:29]} Re8 {[%emt 0:01:53]} 8. Nf3 {[%emt 0:02:09] D35: Queen's Gambit Declined: Exchange Variation.} h6 {[%emt 0:07:28] is now debated instead of 8...Nbd7.} 9. Bf4 {[%emt 0:13:55]} c5 {[%emt 0:04:30]} 10. dxc5 {[%emt 0:04:54]} Bxc5 {[%emt 0:04:25]} 11. O-O {[%emt 0:00:23]} Nc6 {[%emt 0:00:34]} 12. h3 {[%emt 0:00:45]} a6 {[%emt 0:00:08]} 13. Rc1 {[%emt 0:02:40]} Ba7 {[%emt 0:00:23]} 14. Ne2 {[%emt 0:04:29]} Ne4 {[%emt 0:00:33]} 15. Ned4 {[%emt 0:18:09]} Nxd4 $146 {[%emt 0:02:14]} ({Predecessor:} 15... Qf6 16. Nxc6 bxc6 17. Bxe4 Rxe4 18. b3 a5 19. Bg3 Bb6 20. Qc2 Bd7 21. Rfd1 Rc8 {1-0 Kryakvin,D (2471)-Zakaryan,D (2296) Yalta Yialos blitz op 2023 (4)}) 16. exd4 {[%emt 0:02:32]} g5 {[%emt 0:34:19]} 17. Bc7 {[%emt 0:04:41]} Qf6 {[%emt 0:00:47]} 18. Be5 {[%emt 0:03:45]} Qb6 {[%emt 0:05:03]} 19. Bxe4 {[%emt 0:10:27]} dxe4 {[%emt 0:00:14]} 20. Nd2 {[%emt 0:00:09]} Qg6 {[%emt 0:03:50]} 21. Qb3 {[%emt 0:03:23]} Be6 {[%emt 0:07:53]} 22. Qxb7 {[%emt 0:00:27]} f6 {[%emt 0:00:18]} 23. Bc7 {[%emt 0:06:58]} Bxd4 {[%emt 0:01:26]} 24. Nxe4 {[%emt 0:00:13]} Ra7 {[%emt 0:01:59]} 25. Qc6 {[%emt 0:02:31]} Rxc7 {[%emt 0:00:51]} 26. Nxf6+ {[%emt 0:00:17]} Bxf6 {[%emt 0:00:08]} 27. Qxc7 {[%emt 0:00:05]} g4 {[%emt 0:07:38]} 28. hxg4 {[%emt 0:01:07]} Bxg4 {[%emt 0:00:41]} 29. Qc6 {[%emt 0:02:11]} Rf8 {[%emt 0:01:53]} 30. Qd5+ {[%emt 0:02:15]} (30. Qxa6 Bf3 31. Qe6+ Kh8 $19) 30... Kh8 {[%emt 0:00:20]} 31. Rc6 {[%emt 0:01:00]} Qg7 {[%emt 0:01:37]} 32. b4 {[%emt 0:00:40]} (32. Rxa6 $2 Be2 (32... Bxb2 $2 33. Ra8 $18) 33. Ra8 Bxf1 34. Rxf8+ Qxf8 $19) 32... Bh4 {[%emt 0:06:07]} 33. Qd6 {[%emt 0:01:32]} (33. Rxa6 $2 Bf3 $19) 33... h5 {[%emt 0:03:22]} 34. f3 {[%emt 0:08:31]} Bf6 {[%emt 0:00:16]} 35. Rc7 {[%emt 0:00:13]} (35. fxg4 $2 Bd4+ $19) (35. Kh1 $5 Bd7 36. Rc5 $16 (36. Rxa6 Bb5 $11)) 35... Bd4+ {[%emt 0:00:41]} (35... Be5 $5 36. Rxg7 Bxd6 $11) 36. Kh1 {[%emt 0:00:06]} Be5 $1 {[%emt 0:00:30]} 37. Rxg7 {[%emt 0:00:42]} Bxd6 {[%emt 0:00:03]} 38. Rg6 {[%emt 0:00:43]} Bg3 {[%emt 0:01:32]} (38... Bxb4 $14 39. Rxa6 Bc8) 39. Rxa6 {[%emt 0:01:55]} Bf5 {[%emt 0:00:19]} 40. Rd1 {[%emt 0:02:31]} (40. b5 $1 $18) 40... Kg7 $1 $14 {[%emt 0:00:45]} 41. b5 {[%emt 0:30:29]} ({White should play} 41. a4 $1 $16) 41... Re8 $14 {[%emt 0:05:59]} 42. b6 {[%emt 0:00:00]} Re2 {[%emt 0:03:42]} 43. Ra5 {[%emt 0:00:00]} Kf6 $1 {[%emt 0:03:51]} 44. a4 {[%emt 0:00:00]} h4 $1 {[%emt 0:04:03]} 45. b7 {[%emt 0:00:00]} h3 $1 {[%emt 0:05:19]} 46. Rg1 {[%emt 0:00:00]} Bd7 {[%emt 0:04:45]} (46... Bd3 $1 $11) 47. Ra6+ $16 {[%emt 0:00:00]} Kf5 {[%emt 0:01:43]} 48. Rb6 {[%emt 0:00:00]} (48. gxh3 $2 Rh2#) 48... Bb8 {[%emt 0:00:53]} 49. a5 {[%emt 0:00:00]} (49. gxh3 $2 Rh2#) 49... Ra2 $2 {[%emt 0:03:35]} (49... Be6) 50. a6 {[%emt 0:00:00]} (50. gxh3 $2 Rh2#) (50. Rd1 $142 Kg5 (50... hxg2+ $2 51. Kg1 $18) 51. Rd5+ (51. Rxd7 $2 Ra1+) 51... Kh4 52. gxh3 (52. Rxd7 $2 Ra1+) (52. Rh6+ Kg3 $16) 52... Bxh3 53. Rb4+ Kg3 54. Rg5+ Kf2 55. f4) 50... Kf4 $2 {[%emt 0:00:58]} (50... Be6 51. g3 (51. gxh3 $2 Rh2#) 51... Bc4) 51. Rf6+ $18 {[%emt 0:00:00]} Ke3 {[%emt 0:00:04]} 52. Rf8 {[%emt 0:00:00]} hxg2+ {[%emt 0:00:33]} (52... Be5 $142 53. f4 (53. b8=B Bxb8 54. Rxb8 hxg2+ 55. Rxg2 Rxa6 $18) 53... Bd6) 53. Rxg2 $18 {[%emt 0:00:00]} Ra1+ {[%emt 0:00:18]} 54. Rg1 {[%emt 0:00:00]} Rxa6 {[%emt 0:00:38]} 55. Rxb8 {[%emt 0:01:40]} Rh6+ {[%emt 0:00:37]} 56. Kg2 {[%emt 0:00:06]} Rg6+ {[%emt 0:00:13]} 57. Kh2 $1 {[%emt 0:00:05]} Rh6+ {[%emt 0:00:06] [#]} 58. Kg3 $1 {[%emt 0:00:13]} Rg6+ {[%emt 0:00:29] [#]} 59. Kh4 $1 {[%emt 0:00:20]} Rxg1 {[%emt 0:00:13]} 60. Re8+ {[%emt 0:00:09]} Bxe8 {[%emt 0:00:52]} 61. b8=Q {[%emt 0:00:07]} (61. b8=B {is a self mate.} Kxf3) 61... Rh1+ {[%emt 0:00:27]} 62. Kg3 {[%emt 0:00:30]} Bh5 {[%emt 0:00:27]} 63. Qf4+ {[%emt 0:01:21]} Kd3 {[%emt 0:00:43]} 64. Kg2 {[%emt 0:00:07]} (64. Qe4+ $142 Kd2 65. Qd4+ (65. Kg2 Bxf3+ 66. Kxf3 Rh3+ 67. Kf2 Rc3 $18) 65... Kc2 66. f4 (66. Kg2 Bxf3+ 67. Kxf3 Rh3+ 68. Ke2 Rh2+ 69. Kf1 Rh1+ 70. Kg2 Rc1 $18) 66... Bf3 67. Qf2+ (67. Kxf3 Rd1 $18) 67... Kb1 68. Qxf3 Rg1+ 69. Kf2) 1-0

[Event "FIDE Women GP Shimkent 2024"]
[Site "Shimkent"]
[Date "2024.11.02"]
[Round "4.4"]
[White "Lagno, Kateryna"]
[Black "Munguntuul, Batkhuyag"]
[Result "0-1"]
[ECO "B12"]
[WhiteElo "2527"]
[BlackElo "2344"]
[Annotator "TA"]
[PlyCount "82"]
[EventDate "2024.10.11"]
[EventType "tourn"]
[EventCountry "KAZ"]
[SourceTitle "playchess.com"]
[Source "ChessBase"]
[SourceQuality "1"]
[TimeControl "40/5400+30:1800+30"]

{[%evp 9,82,0,0,0,23,0,-9,0,39,30,43,45,43,43,31,24,31,0,0,31,42,0,22,-53,-33,-40,-45,-20,-52,-64,-62,-48,-24,-126,-97,-112,-154,-133,-108,-110,-65,-79,-55,-170,-164,-139,-144,-161,-148,-280,-267,-564,-554,-915,-901,-863,-844,-849,-825,-1062,-1101,-1054,-1119,-1097,-1088,-1079,-1059,-991,-983,-1786,-1741,-1647,-1741,-1190,-1195]} 1. e4 {[%emt 0:00:02]} c6 {[%emt 0:00:02]} 2. d4 {[%emt 0:00:09]} d5 {[%emt 0:00:03]} 3. e5 {[%emt 0:00:11]} Bf5 {[%emt 0:00:04]} 4. Nf3 {[%emt 0:00:20]} e6 {[%emt 0:00:07]} 5. Nbd2 {[%emt 0:00:15]} c5 {[%emt 0:02:37]} 6. Bb5+ {[%emt 0:00:33]} Nc6 {[%emt 0:00:48]} 7. Bxc6+ {[%emt 0:00:20]} bxc6 {[%emt 0:00:03]} 8. O-O {[%emt 0:00:15] The position is equal.} Bg4 {[%emt 0:07:27]} 9. c4 {[%emt 0:03:36]} Qd7 {[%emt 0:26:48]} 10. Qa4 {[%emt 0:04:23]} Rb8 {[%emt 0:02:39]} 11. dxc5 {[%emt 0:01:49]} Bxf3 {[%emt 0:02:31]} 12. Nxf3 {[%emt 0:00:14]} Bxc5 {[%emt 0:00:05]} 13. cxd5 {[%emt 0:08:37]} cxd5 {[%emt 0:01:44]} 14. Qg4 {[%emt 0:00:12]} f5 {[%emt 0:04:14]} 15. Qg3 {[%emt 0:01:20]} h6 {[%emt 0:03:05]} 16. h4 {[%emt 0:20:14]} (16. a3 $11) 16... Rb4 {[%emt 0:09:25]} 17. Bf4 {[%emt 0:04:00]} Kf7 {[%emt 0:00:38]} 18. Rac1 {[%emt 0:06:05]} Bb6 {[%emt 0:02:01]} 19. b3 $1 {[%emt 0:04:14]} Ne7 {[%emt 0:00:32]} 20. h5 {[%emt 0:04:41]} Rg8 {[%emt 0:06:05]} 21. Qh2 {[%emt 0:15:15]} (21. Rc2 $11) 21... a5 {[%emt 0:04:12]} 22. Ne1 {[%emt 0:04:45]} g5 {[%emt 0:11:01]} 23. hxg6+ {[%emt 0:02:32]} Nxg6 {[%emt 0:00:51]} 24. Nd3 {[%emt 0:02:13]} Nxf4 {[%emt 0:00:40]} 25. Nxf4 {[%emt 0:00:10] Qh5+ would now be deadly.} Rg4 {[%emt 0:00:19] Active counter play!} 26. Qh5+ {[%emt 0:06:10]} (26. Nh3 $15) 26... Kg7 $19 {[%emt 0:09:07]} 27. Nd3 {[%emt 0:00:27] [#]} Rh4 {[%emt 0:00:10] Some like it hot} 28. Qf3 {[%emt 0:00:29]} Rbg4 {[%emt 0:00:11] Strongly threatening ...f4.} 29. Nc5 {[%emt 0:05:51]} (29. Rc3 $17 {was worth a try.}) 29... Qe7 {[%emt 0:00:48]} 30. Na4 {[%emt 0:00:19] [#]} (30. Nd3 Qg5 31. Nc5 Bxc5 32. Rxc5 Rxg2+ 33. Qxg2) 30... Rh5 $1 {[%emt 0:02:32][%cal Oe7h4] Black is clearly winning.} 31. Rfd1 {[%emt 0:02:03] [#]} (31. Rc3 Qh4) 31... Qh4 $1 {[%emt 0:00:18][%csl Gh5][%cal Rh4h1]} 32. Kf1 {[%emt 0:00:04]} Rf4 {[%emt 0:01:19]} 33. Nxb6 {[%emt 0:00:21]} Rxf3 {[%emt 0:00:06]} 34. gxf3 {[%emt 0:00:03]} Qf4 {[%emt 0:00:31]} 35. Rc7+ {[%emt 0:02:16]} Kg6 {[%emt 0:00:20]} 36. Nd7 {[%emt 0:00:25]} Rh1+ {[%emt 0:01:04]} ({And not} 36... Qxf3 37. Nf8+ Kg5 38. Nxe6+ Kg4 39. Rd4+ Kh3 40. Nf4+ Kh2 41. Nxh5 Qh3+ 42. Ke1 Qxh5 43. Rd7 $11 (43. Rxd5 f4 $14)) 37. Ke2 {[%emt 0:00:03]} Rxd1 {[%emt 0:00:07]} 38. Kxd1 {[%emt 0:00:10]} Qxf3+ {[%emt 0:00:05]} 39. Ke1 {[%emt 0:00:02]} d4 {[%emt 0:01:11] ( -> ...d3)} 40. Nf8+ {[%emt 0:01:53]} Kh5 {[%emt 0:00:04] And now ...d3 would win.} 41. Nxe6 {[%emt 0:30:39]} d3 {[%emt 0:30:42] Weighted Error Value: White=0.56/Black=0.07 (flawless) .  Mistake:       	White=5     	---        Inaccurate:     	White=3     	Black=3      OK:         	White=9     	Black=7      Best:        	White=1     	Black=7      Strong:       	White=1     	---} 0-1

[Event "FIDE Women GP Shimkent 2024"]
[Site "Shimkent"]
[Date "2024.11.02"]
[Round "4.5"]
[White "Divya Deshmukh"]
[Black "Tan, Zhongyi"]
[Result "1/2-1/2"]
[ECO "E94"]
[WhiteElo "2501"]
[BlackElo "2551"]
[Annotator "TA"]
[PlyCount "81"]
[EventDate "2024.10.11"]
[EventType "tourn"]
[EventCountry "KAZ"]
[SourceTitle "playchess.com"]
[Source "ChessBase"]
[SourceQuality "1"]
[TimeControl "40/5400+30:1800+30"]

{[%evp 15,81,40,57,11,8,16,22,0,0,0,0,0,0,0,0,0,12,0,0,-9,4,8,7,13,13,-5,-4,-16,-9,-10,-8,-12,-5,-22,-21,-16,-28,-22,-28,-19,-20,-30,-14,-29,-8,-3,-10,-42,-43,-43,-43,-43,13,13,172,68,70,0,0,0,0,0,0,0,0,0,0,0]} 1. d4 {[%emt 0:00:03]} Nf6 {[%emt 0:00:09]} 2. Nf3 {[%emt 0:02:06]} g6 {[%emt 0:01:16]} 3. c4 {[%emt 0:00:42]} Bg7 {[%emt 0:00:14]} 4. Nc3 {[%emt 0:00:19]} O-O {[%emt 0:00:38]} 5. e4 {[%emt 0:00:18]} d6 {[%emt 0:00:08]} 6. Be2 {[%emt 0:00:18]} e5 {[%emt 0:00:14]} 7. O-O {[%emt 0:01:23]} Na6 {[%emt 0:00:43][%cal Bb8a6,Ba6c5,Bc5e4,Be4c3,Bc3d1][%mdl 32]} 8. Be3 {[%emt 0:03:46]} Qe7 {[%emt 0:00:26][%cal Of6e4] [#]} 9. c5 {[%emt 0:02:31]} exd4 $11 {[%emt 0:08:44]} 10. cxd6 {[%emt 0:05:34]} cxd6 {[%emt 0:00:06]} 11. Bxd4 {[%emt 0:01:24]} Nc5 {[%emt 0:01:32]} 12. Re1 {[%emt 0:10:10]} Ncxe4 {[%emt 0:12:26]} 13. Bc4 {[%emt 0:22:08] Strongly threatening Nxe4.} Nxc3 {[%emt 0:00:18]} 14. Rxe7 {[%emt 0:02:28]} Nxd1 {[%emt 0:00:07]} 15. Rxd1 {[%emt 0:00:06]} b6 {[%emt 0:04:24]} 16. Bb3 {[%emt 0:08:12]} a5 {[%emt 0:21:13]} 17. a4 {[%emt 0:08:50][%cal Od1c1]} Bg4 {[%emt 0:02:03]} 18. h3 {[%emt 0:08:07]} (18. Bxb6 Rab8 19. Rxd6 Nd7 $17) 18... Bxf3 {[%emt 0:00:14]} 19. gxf3 {[%emt 0:00:01]} Rab8 {[%emt 0:08:58]} 20. Ra7 {[%emt 0:04:35]} b5 {[%emt 0:04:56]} 21. Rxa5 {[%emt 0:05:28]} bxa4 {[%emt 0:00:19]} 22. Bxa4 {[%emt 0:00:19] A strong pair of Bishops.} Nh5 {[%emt 0:00:17]} 23. b3 {[%emt 0:02:20]} Nf4 {[%emt 0:00:49]} 24. Bxg7 {[%emt 0:00:42]} Kxg7 {[%emt 0:00:05]} 25. Rxd6 {[%emt 0:00:12]} Nxh3+ {[%emt 0:00:44]} 26. Kh2 {[%emt 0:00:04]} Nf4 {[%emt 0:00:05]} (26... Nxf2 $2 {perishes.} 27. Kg2 $18) 27. Bb5 {[%emt 0:00:08]} Rb7 {[%emt 0:01:31]} 28. Bc4 {[%emt 0:00:33]} h6 {[%emt 0:00:28]} 29. Ra4 {[%emt 0:05:53] aiming for Ba6.} g5 {[%emt 0:05:00]} 30. b4 $1 {[%emt 0:00:42]} Re8 {[%emt 0:00:12] Threatening ...Re1.} 31. b5 {[%emt 0:01:04]} Re1 {[%emt 0:00:08]} 32. b6 {[%emt 0:04:12] And now Ra7 would win.} Rb1 {[%emt 0:00:34]} 33. Ra6 {[%emt 0:00:01]} h5 {[%emt 0:13:54]} (33... Rb4 $15 34. Bd5 Nxd5 35. Rxd5 R7xb6 (35... R4xb6 36. Rd6 $15) 36. Rxb6 Rxb6) 34. Ra5 {[%emt 0:00:03]} f6 {[%emt 0:00:44] [#]} (34... R1xb6 $11 35. Rxg5+ Ng6 36. Rxb6 Rxb6) 35. Rb5 {[%emt 0:00:02]} ({Not} 35. Ra7 R1xb6 36. Rxb6 Rxa7 $17) ({Only move:} 35. Bb5 $1 $18) 35... Rc1 $1 $14 {[%emt 0:00:41]} 36. Bd5 {[%emt 0:02:03]} (36. Rc6 $14 Rc2 37. Rb4) 36... Nxd5 $11 {[%emt 0:02:44] The position is equal.} 37. Rbxd5 {[%emt 0:00:20]} Rb1 {[%emt 0:00:05]} 38. f4 {[%emt 0:00:53]} gxf4 {[%emt 0:00:15]} 39. Rxh5 {[%emt 0:00:33]} R1xb6 {[%emt 0:00:07]} 40. Rxb6 {[%emt 0:01:09]} Rxb6 {[%emt 0:00:06]} 41. Rf5 {[%emt 0:30:04] Weighted Error Value: White=0.14 (very precise) /Black=0.13 (very precise) .  Mistake:       	White=2     	Black=2      Inaccurate:     	White=1     	---        OK:         	White=10    	Black=14     Best:        	White=3     	Black=4      Strong:       	White=1     	Black=1} 1/2-1/2